[Event "50th La Roda Open 2024"]
[Site "La Roda"]
[Date "2024.03.29"]
[Round "4.7"]
[White "Siddharth, Jagadeesh"]
[Black "Rottenwohrer Suarez, Juan"]
[Result "1-0"]
[ECO "C44"]
[WhiteElo "2490"]
[BlackElo "2275"]
[Annotator "TA"]
[PlyCount "72"]
[EventDate "2024.03.27"]
[EventType "swiss"]
[EventCountry "ESP"]
[SourceTitle "playchess.com"]
[Source "ChessBase"]
[SourceQuality "1"]
[TimeControl "5400+30"]

{[%evp 9,72,-24,-12,-12,-13,-20,-11,-41,-31,-41,26,0,34,6,25,-28,-39,-26,-23,-35,7,0,0,-5,0,0,0,0,8,15,27,29,30,32,48,32,37,28,14,29,77,40,40,16,0,0,0,-30,0,-123,53,0,0,0,0,-170,0,0,0,0,5343,3810,3479,-29996,29991]} 1. e4 {[%emt 0:00:45]} e5 {[%emt 0:00:10]} 2. Nf3 {[%emt 0:00:05]} Nf6 {[%emt 0:00:05]} 3. d3 {[%emt 0:05:54]} Nc6 {[%emt 0:01:22]} 4. c4 {[%emt 0:01:36]} Bc5 {[%emt 0:05:10]} 5. h3 {[%emt 0:00:05]} d6 {[%emt 0:03:55]} 6. a3 {[%emt 0:00:42]} a5 {[%emt 0:00:09]} 7. Nc3 {[%emt 0:00:07]} h6 {[%emt 0:01:41]} 8. g3 {[%emt 0:00:24] The position is equal.} Bd7 {[%emt 0:05:13]} 9. Bg2 {[%emt 0:02:08]} g5 {[%emt 0:02:07]} (9... Nh7 $15) 10. Nh2 {[%emt 0:05:34]} Ne7 {[%emt 0:03:16]} 11. b3 {[%emt 0:01:49]} Rg8 {[%emt 0:03:03]} 12. Nd5 {[%emt 0:16:31]} (12. Nf3 $142) 12... Nfxd5 $11 {[%emt 0:08:42]} 13. cxd5 {[%emt 0:00:25]} c6 {[%emt 0:00:48]} 14. dxc6 {[%emt 0:05:47]} bxc6 {[%emt 0:00:12]} 15. O-O {[%emt 0:01:43]} Rb8 {[%emt 0:03:38]} 16. Rb1 {[%emt 0:02:40]} Be6 {[%emt 0:04:27]} 17. Ng4 {[%emt 0:01:32][%cal Bh2g4,Bg4e3,Be3c4][%mdl 32]} Rg6 {[%emt 0:01:45] Repels Nf6+} 18. Ne3 {[%emt 0:00:58]} Qb6 {[%emt 0:02:31][%cal Re6b3]} 19. Nc4 {[%emt 0:02:45]} Qa6 {[%emt 0:07:04]} 20. Qc2 {[%emt 0:06:13][%cal Oc4e5] Hoping for Nxe5!} Bxc4 {[%emt 0:07:37]} 21. dxc4 {[%emt 0:00:12]} (21. bxc4 Rxb1 22. Qxb1 Rf6 $11) 21... Rf6 {[%emt 0:00:24]} 22. Qe2 {[%emt 0:01:33]} Ng6 {[%emt 0:01:45]} 23. Bf3 {[%emt 0:00:09]} Nf8 {[%emt 0:00:52]} 24. Bg4 {[%emt 0:00:06]} Ke7 {[%emt 0:03:40]} (24... Qa7 $11) 25. Kg2 {[%emt 0:02:19]} Ne6 {[%emt 0:00:36]} 26. Bxe6 {[%emt 0:00:03]} fxe6 {[%emt 0:00:08]} 27. Qg4 {[%emt 0:01:19]} Rbf8 {[%emt 0:09:36]} 28. f3 {[%emt 0:05:16]} a4 {[%emt 0:02:07] Threatens to win with ...axb3.} 29. h4 {[%emt 0:02:53]} (29. Bd2 $1 $11) 29... Kd7 $2 {[%emt 0:06:40]} (29... axb3 $1 $17 30. hxg5 Rg6 (30... hxg5 31. Bxg5 Qxc4 32. Rb2 $11) 31. Rxb3 Qxc4 32. Rb7+ Kd8) 30. hxg5 {[%emt 0:02:01]} (30. Bd2 $1 $14) 30... hxg5 {[%emt 0:00:11]} 31. b4 {[%emt 0:08:41][%cal Bb3b4,Bb4c5][%mdl 32]} (31. Qxg5 $2 axb3 32. Rxb3 Qxc4 $19) 31... Qxc4 {[%emt 0:02:23] ( -> ...Qe2+)} 32. Bxg5 $2 {[%emt 0:02:54] [#]} (32. bxc5 $11 {and White has nothing to worry.} Rxf3 (32... Qc2+ $2 33. Bd2 $18) 33. Rxf3 Qe2+ 34. Kg1 Qe1+ 35. Kg2 Qe2+ 36. Kg1 Qe1+ 37. Kg2 Qe2+) 32... Qe2+ $2 {[%emt 0:01:35]} (32... Rxf3 $1 $19 33. Rxf3 Qc2+ 34. Kf1 (34. Kh3 $2 Qxb1 $19) 34... Qxb1+ 35. Ke2 Qc2+ 36. Ke1 Bf2+ 37. Kf1 Rxf3 38. Qxf3 Bd4 39. Qf7+ Kc8 40. Qxe6+ Kb7 41. Qd7+ Ka6) 33. Kh3 {[%emt 0:00:01]} Rg6 $40 {[%emt 0:02:41][%mdl 128] Black mounts an attack.} 34. Qh5 {[%emt 0:02:00] Inhibits Rh8. The board is on fire.} Rfg8 $2 {[%emt 0:02:30][%mdl 8192]} (34... Rxg5 $11 35. Qxg5 Bf2) 35. bxc5 $18 {[%emt 0:00:54]} Qa6 {[%emt 0:09:57] [#] Wards off Rb7+} 36. Bc1 $4 {[%mdl 8192]} Rf6 $4 {[%emt 0:00:30][%mdl 8192] Weighted Error Value: White=0.43/Black=0.29 (precise) .  Loses game:     	White=1     	Black=1      Missed win:     	---       	Black=1      Mistake:       	White=3     	Black=3      Inaccurate:     	White=5     	Black=3      OK:         	White=6     	Black=12     Best:        	White=2     	---} (36... Rxg3+ {and life is good for Black.} 37. Kh4 Rh3+ (37... Qxf1 38. Qf7+ Kc8 39. Qxe6+ Kc7 40. cxd6+ Kd8 41. Rb8#) 38. Kxh3 Qxf1+ 39. Kh4 Qh1#) 1-0

[Event "50th La Roda Open 2024"]
[Site "La Roda"]
[Date "2024.03.29"]
[Round "4.8"]
[White "Ponce Navalon, Jose"]
[Black "Elias Reyes, Jorge Roberto"]
[Result "1-0"]
[ECO "B50"]
[WhiteElo "2141"]
[BlackElo "2473"]
[Annotator "TA"]
[PlyCount "97"]
[EventDate "2024.03.27"]
[EventType "swiss"]
[EventCountry "ESP"]
[SourceTitle "playchess.com"]
[Source "ChessBase"]
[SourceQuality "1"]
[TimeControl "5400+30"]

{[%evp 10,97,0,-6,5,0,0,0,0,0,0,0,16,-19,-17,-43,-39,-69,-69,-94,-91,-143,-139,-137,-106,-157,-49,-58,225,227,427,406,419,399,404,318,327,300,303,295,293,258,270,275,256,236,236,212,218,214,280,278,298,280,291,281,284,252,275,243,407,394,439,429,452,466,472,435,639,489,494,488,443,433,385,223,568,547,29979,507,595,592,767,767,762,722,737,364,750,729]} 1. e4 {[%emt 0:00:03]} c5 {[%emt 0:02:34]} 2. Nf3 {[%emt 0:01:34]} d6 {[%emt 0:00:13]} 3. c3 {[%emt 0:01:20]} Nf6 {[%emt 0:00:36]} 4. Bc4 {[%emt 0:01:03]} e6 {[%emt 0:01:54]} 5. Qe2 {[%emt 0:00:49]} Be7 {[%emt 0:06:53]} 6. d4 {[%emt 0:06:47]} cxd4 {[%emt 0:08:51]} 7. Nxd4 {[%emt 0:00:50]} O-O {[%emt 0:01:00]} 8. O-O {[%emt 0:03:07]} Nxe4 {[%emt 0:09:15] The position is equal.} 9. Qxe4 {[%emt 0:11:37]} d5 {[%emt 0:00:07]} 10. Bxd5 {[%emt 0:00:04]} exd5 {[%emt 0:00:07]} 11. Qf3 {[%emt 0:00:09]} Nc6 {[%emt 0:00:44]} 12. Nf5 {[%emt 0:01:20]} Bf6 {[%emt 0:01:44]} 13. Ne3 {[%emt 0:12:52]} Be6 {[%emt 0:04:03]} 14. Rd1 {[%emt 0:01:38]} d4 {[%emt 0:11:50]} 15. cxd4 {[%emt 0:03:01]} (15. Nc2 $142) 15... Nxd4 $17 {[%emt 0:02:05]} 16. Qxb7 {[%emt 0:00:51]} Qa5 {[%emt 0:06:48][%cal Oa8b8]} 17. Nc3 {[%emt 0:04:48]} ({Better is} 17. Bd2 Qh5 (17... Ne2+ 18. Kh1 $15) 18. Nc3) 17... Rab8 {[%emt 0:06:51]} ({Black should try} 17... Rad8 $1 $17 18. Bd2 Bc8) 18. Qe4 $15 {[%emt 0:00:26][%cal Oe3d5] Strongly threatening Ned5!} Rb4 $2 {[%emt 0:04:57][%mdl 8192] Loses the game.} (18... Rfd8 $15 {keeps the upper hand.} 19. h3 (19. Ng4 $2 Bxg4 20. Qxg4 h5 $19) 19... Nb3 20. Rxd8+ Rxd8) 19. Ned5 $18 {[%emt 0:03:55] Excellent horsemanship.} Bf5 $2 {[%emt 0:07:19]} (19... Rd8 {was necessary.}) 20. Nxf6+ {[%emt 0:00:22]} gxf6 {[%emt 0:00:02]} 21. Qe7 {[%emt 0:00:40][%cal Oc1h6] Bh6! would now be deadly.} Rfb8 {[%emt 0:11:42]} 22. Qxf6 {[%emt 0:01:35]} Qd8 {[%emt 0:01:37]} 23. Qxd8+ {[%emt 0:01:04]} Rxd8 {[%emt 0:00:02]} 24. Be3 {[%emt 0:00:18]} Ne6 {[%emt 0:01:33]} 25. Rxd8+ {[%emt 0:00:16]} Nxd8 {[%emt 0:00:01]} 26. Nd5 {[%emt 0:00:14]} Rb7 {[%emt 0:01:50]} 27. Bg5 {[%emt 0:02:28]} Nc6 {[%emt 0:00:49]} 28. Bf6 {[%emt 0:03:23]} Rd7 {[%emt 0:02:30] [#]} 29. Re1 $1 {[%emt 0:02:05][%cal Re1e8]} h5 {[%emt 0:01:27][%cal Bh7h5,Bh5h4][%mdl 32]} (29... Kf8 30. Ne3) 30. Nf4 {[%emt 0:02:47] White wants to mate with Re8+.} Kh7 {[%emt 0:00:12]} 31. h3 {[%emt 0:02:37][%cal Oe1e8] Hoping for Re8!} (31. Nxh5 Kg6 $15) 31... Rd6 {[%emt 0:00:41]} 32. Bc3 {[%emt 0:00:37]} h4 {[%emt 0:01:44]} 33. Re8 {[%emt 0:02:01][%csl Gc3][%cal Re8h8]} f6 {[%emt 0:00:04]} 34. g4 {[%emt 0:00:23]} Bd7 {[%emt 0:02:21]} (34... hxg3 35. fxg3 Kg7) 35. Rf8 {[%emt 0:00:30]} Ne5 {[%emt 0:00:49]} 36. Nh5 {[%emt 0:05:23]} Rd1+ {[%emt 0:01:40] [#]} 37. Kg2 $1 {[%emt 0:00:45]} (37. Kh2 $2 Nf3+ 38. Kg2 Bc6 39. Nxf6+ (39. Rxf6 $2 Rg1#) 39... Kg6 $19) 37... Bc6+ {[%emt 0:00:16] [#]} 38. f3 $1 {[%emt 0:00:16]} Nxf3 {[%emt 0:01:23]} (38... Rd3 $142 39. Rxf6 (39. Nxf6+ Kg7 $18) 39... Bxf3+ 40. Kg1 (40. Kf2 Bxg4 41. hxg4 Nxg4+ 42. Ke2 Re3+ 43. Kd2 Rh3 $18) 40... Rd1+ 41. Kf2 Nxg4+ 42. hxg4 Bxg4) (38... a5 39. Rxf6) 39. Kf2 {[%emt 0:00:19]} Ng5 {[%emt 0:00:42]} 40. Nxf6+ {[%emt 0:01:15]} (40. Rxf6 Bb5 $16) 40... Kg6 {[%emt 0:00:05]} 41. Rg8+ {[%emt 0:00:30]} Kh6 {[%emt 0:00:02]} 42. Ke2 {[%emt 0:03:59]} (42. Bb4 $142 {[%cal Rb4f8]} Ne4+ 43. Ke2 Nxf6 44. Bf8+ Kh7 45. Rg7+ Kh8 46. Kxd1) 42... Bf3+ $2 {[%emt 0:00:06] [#]} (42... Rd6 43. b3 Re6+ 44. Kd1 Bg2) 43. Ke3 $1 {[%emt 0:00:11]} Rf1 {[%emt 0:01:42]} 44. Nd7 {[%emt 0:02:25]} (44. Bb4 $142 Re1+ 45. Bxe1 Nh7 46. Kxf3 (46. Bxh4 Nxf6 47. g5+ Kh7 $18) 46... Nxf6 47. g5+ Kh7 48. gxf6 Kxg8 49. Ke4 (49. Bxh4 Kf7 50. Kf4 Kg6 51. Bg5 a6 52. a3 a5 53. a4 Kh7)) 44... Bd5 {[%emt 0:00:46]} 45. Rh8+ {[%emt 0:00:21]} Kg6 {[%emt 0:00:19]} 46. Ne5+ {[%emt 0:00:07]} Kg7 {[%emt 0:00:30]} 47. Nf3+ {[%emt 0:00:18]} Kg6 {[%emt 0:00:02]} 48. Nxh4+ {[%emt 0:00:21]} Kf7 {[%emt 0:00:05]} 49. Rh5 {[%emt 0:00:35] Weighted Error Value: White=0.38/Black=0.74.  Loses game:     	---       	Black=1      Mistake:       	White=4     	Black=5      Inaccurate:     	White=3     	Black=2      OK:         	White=10    	Black=12     Best:        	White=4     	Black=3      Strong:       	White=2     	---        Brilliant:      	White=1     	---} 1-0

[Event "50th La Roda Open 2024"]
[Site "La Roda"]
[Date "2024.03.29"]
[Round "4.9"]
[White "Jarque Megias, Juan Jose"]
[Black "Pranav Vijay"]
[Result "1-0"]
[ECO "C56"]
[WhiteElo "2048"]
[BlackElo "2252"]
[Annotator "RC"]
[PlyCount "85"]
[EventDate "2024.03.27"]
[EventType "swiss"]
[EventCountry "ESP"]
[SourceTitle "playchess.com"]
[Source "ChessBase"]
[SourceQuality "1"]
[TimeControl "5400+30"]

1. e4 {[%emt 0:00:03]} e5 {[%emt 0:01:14]} 2. Nf3 {[%emt 0:00:03]} Nc6 {[%emt 0:00:11]} 3. d4 {[%emt 0:00:19]} exd4 {[%emt 0:00:07]} 4. Bc4 {[%emt 0:00:05]} Nf6 {[%emt 0:00:21]} 5. e5 {[%emt 0:01:00]} d5 {[%emt 0:00:09]} 6. Bb5 {[%emt 0:00:04]} Ne4 {[%emt 0:00:26]} 7. Nxd4 {[%emt 0:00:11]} Bd7 {[%emt 0:00:06]} 8. Bxc6 {[%emt 0:00:02]} bxc6 {[%emt 0:00:11]} 9. O-O {[%emt 0:00:13]} Bc5 {[%emt 0:00:06]} 10. f3 {[%emt 0:00:06]} Ng5 {[%emt 0:00:06]} 11. Be3 {[%emt 0:00:11]} Bb6 {[%emt 0:00:07]} 12. a4 {[%emt 0:01:26]} a5 {[%emt 0:02:35]} 13. c3 {[%emt 0:02:49]} O-O {[%emt 0:10:28]} 14. f4 {[%emt 0:06:21]} Ne4 {[%emt 0:02:28]} 15. Nd2 {[%emt 0:01:38]} Nxd2 {[%emt 0:01:19]} 16. Qxd2 {[%emt 0:00:09]} Re8 {[%emt 0:01:37]} 17. Rfe1 {[%emt 0:07:18]} Qe7 {[%emt 0:05:15]} 18. Qf2 {[%emt 0:06:13]} Rab8 {[%emt 0:04:26]} 19. h3 {[%emt 0:06:09]} h5 {[%emt 0:07:08]} 20. Re2 {[%emt 0:06:58]} c5 {[%emt 0:17:35]} 21. Nb3 {[%emt 0:03:56]} c4 {[%emt 0:00:11]} 22. Nd4 {[%emt 0:00:47]} c5 {[%emt 0:01:03]} 23. Nb5 {[%emt 0:01:24]} Bxb5 {[%emt 0:00:42]} 24. axb5 {[%emt 0:00:05]} Rbd8 {[%emt 0:04:00]} 25. Rd1 {[%emt 0:04:25]} d4 {[%emt 0:00:42]} 26. Bd2 {[%emt 0:10:53]} f5 {[%emt 0:06:17]} 27. Qf3 {[%emt 0:07:08]} Qf7 {[%emt 0:14:29]} 28. Be1 {[%emt 0:09:06]} Rd7 {[%emt 0:06:16]} 29. Bh4 {[%emt 0:05:35]} Re6 {[%emt 0:01:16]} 30. Rde1 {[%emt 0:01:12]} Qe8 {[%emt 0:03:06]} 31. g4 {[%emt 0:02:52]} Rf7 {[%emt 0:06:17]} 32. Rg2 {[%emt 0:05:12]} hxg4 {[%emt 0:03:32]} 33. hxg4 {[%emt 0:00:07]} Qd7 {[%emt 0:00:53]} 34. gxf5 {[%emt 0:01:37]} Rxf5 {[%emt 0:00:19]} 35. Qg4 {[%emt 0:01:00]} Qf7 {[%emt 0:00:25]} 36. Bg5 {[%emt 0:00:33]} Qg6 {[%emt 0:01:54]} 37. Qf3 {[%emt 0:00:41]} Qe8 {[%emt 0:00:54]} 38. Qd5 {[%emt 0:00:38]} Qf7 {[%emt 0:00:44]} 39. Rh2 {[%emt 0:01:23]} Re8 {[%emt 0:00:32]} 40. Qh1 {[%emt 0:00:22]} Rxg5+ {[%emt 0:00:30]} 41. fxg5 {[%emt 0:00:11]} Qe6 {[%emt 0:00:02]} 42. Rh8+ {[%emt 0:00:38]} Kf7 {[%emt 0:00:02]} 43. Qh5+ {[%emt 0:00:09]} 1-0

[Event "50th La Roda Open 2024"]
[Site "La Roda"]
[Date "2024.03.29"]
[Round "4.10"]
[White "Albornoz Cabrera, Carlos Daniel"]
[Black "Jarzebowski, Kacper"]
[Result "1-0"]
[ECO "C65"]
[WhiteElo "2603"]
[BlackElo "2139"]
[Annotator "TA"]
[PlyCount "51"]
[EventDate "2024.03.27"]
[EventType "swiss"]
[EventCountry "ESP"]
[SourceTitle "playchess.com"]
[Source "ChessBase"]
[SourceQuality "1"]
[TimeControl "5400+30"]

{[%evp 12,51,2,4,6,0,0,0,14,-20,-22,-29,-24,-54,22,19,70,62,60,63,79,96,179,185,169,206,188,154,292,94,652,646,753,743,1497,1489,5310,5297,29977,29969,1790,837]} 1. e4 {[%emt 0:00:03]} e5 {[%emt 0:00:04]} 2. Nf3 {[%emt 0:00:04]} Nc6 {[%emt 0:00:02]} 3. Bb5 {[%emt 0:00:04]} Nf6 {[%emt 0:00:05]} 4. d3 {[%emt 0:00:05]} Bc5 {[%emt 0:00:05]} 5. c3 {[%emt 0:00:21][%cal Bc2c3,Bc3d4,Bd4d5][%mdl 32]} O-O {[%emt 0:00:07]} 6. O-O {[%emt 0:00:22]} d6 {[%emt 0:00:13]} 7. Nbd2 {[%emt 0:00:26]} Ne7 {[%emt 0:02:13]} 8. d4 {[%emt 0:00:22]} exd4 {[%emt 0:00:22]} 9. cxd4 {[%emt 0:00:04]} Bb6 {[%emt 0:00:08] Die Stellung ist ausgeglichen.} 10. a4 {[%emt 0:02:08]} a6 {[%emt 0:03:55]} 11. Bd3 {[%emt 0:00:14]} Nc6 {[%emt 0:05:09]} 12. a5 {[%emt 0:02:17]} Ba7 {[%emt 0:01:46]} ({Günstiger ist} 12... Bxd4 $15 13. Nxd4 Nxd4) 13. d5 $11 {[%emt 0:05:12]} Ne5 {[%emt 0:04:58]} (13... Nb4 $11 14. Bb1 b6) 14. Nxe5 $14 {[%emt 0:02:20]} dxe5 {[%emt 0:00:02]} 15. Nc4 $36 {[%emt 0:05:37][%mdl 2048] Weiss kämpft um Vorteil.} Ng4 {[%emt 0:11:07] Und ...Qh4 würde nun gewinnen.} 16. h3 {[%emt 0:10:18]} Nxf2 {[%emt 0:02:09]} (16... Nf6 $16) 17. Rxf2 $18 {[%emt 0:00:13]} Bxf2+ {[%emt 0:00:22]} 18. Kxf2 {[%emt 0:00:02]} Qh4+ {[%emt 0:00:23] [#]} 19. Kg1 $1 {[%emt 0:01:38][%cal Oc1e3]} Bxh3 {[%emt 0:20:22]} (19... f5 $16 {ist wohl besser.} 20. Be3 (20. Nxe5 Qg3 $16) 20... fxe4) 20. Qf3 $2 {[%emt 0:17:23]} (20. gxh3 $18 {ist der präzise Gewinnweg.} Qg3+ 21. Kf1) 20... f5 $2 {[%emt 0:18:20][%mdl 8192] Das Aus für Schwarz.} 21. Qxh3 {[%emt 0:07:16]} Qe1+ {[%emt 0:00:16] [#]} 22. Kh2 $1 {[%emt 0:00:06]} fxe4 {[%emt 0:00:14]} 23. Bg5 {[%emt 0:06:02]} Qxa1 {[%emt 0:01:19]} 24. Bxe4 {[%emt 0:00:05] Das Läuferpaar ist gut.} h6 {[%emt 0:01:14]} 25. Qe6+ {[%emt 0:00:38]} Rf7 {[%emt 0:01:46]} 26. Nxe5 {[%emt 0:00:37] Gewichteter Fehlerwert: Weiß=0.24 (präzise) /Schwarz=0.93.  Verlustzug:     	---       	Schwarz=1     Gewinn verpasst:   	Weiß=1     	---        Fehler:       	---       	Schwarz=4     Ungenau:       	Weiß=2     	---        OK:         	Weiß=3     	Schwarz=3     Bester:       	Weiß=2     	Schwarz=1     Stark:        	Weiß=1     	---} (26. Bg6 $142 Qf1 27. Nd2 (27. Bxf7+ Qxf7 28. Qxf7+ Kxf7 $11) (27. Nxe5 Raf8 $18)) 1-0

[Event "50th La Roda Open 2024"]
[Site "La Roda"]
[Date "2024.03.29"]
[Round "4.11"]
[White "Admiraal, Miguoel"]
[Black "Campayo Hernandez, Juan"]
[Result "1-0"]
[ECO "D00"]
[WhiteElo "2471"]
[BlackElo "2071"]
[Annotator "TA"]
[PlyCount "79"]
[EventDate "2024.03.27"]
[EventType "swiss"]
[EventCountry "ESP"]
[SourceTitle "playchess.com"]
[Source "ChessBase"]
[SourceQuality "1"]
[TimeControl "5400+30"]

{[%evp 9,78,7,3,3,118,126,114,113,102,129,127,110,264,262,310,225,266,257,301,297,591,567,587,441,646,649,644,642,697,689,1212,1187,1203,891,1625,1571,5202,1715,5760,5357,12566,9564,29973,29975,29982,29983,29986,29987,29987,29988,29988,29989,29991,29990,29990,29991,29991,29992,29992,29993,29993,29993,29994,29994,29996,29997,29997,29998,29998,29999,29999]} 1. d4 {[%emt 0:00:23]} d5 {[%emt 0:00:08]} 2. Bf4 {[%emt 0:00:19]} Nf6 {[%emt 0:00:32]} 3. e3 {[%emt 0:00:10]} c5 {[%emt 0:02:13]} 4. Nc3 {[%emt 0:00:45]} Bg4 {[%emt 0:01:30]} 5. f3 {[%emt 0:01:21]} Bd7 {[%emt 0:07:14]} 6. dxc5 {[%emt 0:02:05]} e5 {[%emt 0:02:47]} 7. Bxe5 $16 {[%emt 0:02:40][%cal Bf4e5,Be5c3,Bc3d4][%mdl 32]} Bxc5 {[%emt 0:00:08]} 8. Nxd5 {[%emt 0:12:48] White is better.} Nxd5 {[%emt 0:09:01]} 9. Qxd5 {[%emt 0:00:07]} Qh4+ {[%emt 0:00:32]} 10. g3 {[%emt 0:02:28]} Qb4+ {[%emt 0:01:26]} (10... Qe7 $16 11. O-O-O (11. Qxb7 $2 Qxe5 12. Qxa8 Bc6 $19) (11. Bxg7 Qxe3+ 12. Kd1 Rg8 $16) 11... Bc6) 11. Bc3 $18 {[%emt 0:09:33]} Qb6 {[%emt 0:00:15]} 12. Bd4 {[%emt 0:03:50]} Qb4+ {[%emt 0:08:29]} 13. Kf2 {[%emt 0:00:28]} Qd2+ {[%emt 0:08:04]} 14. Ne2 {[%emt 0:00:25]} Be7 {[%emt 0:00:27]} (14... Bxd4 {keeps fighting.} 15. Qxd4 Qxd4 16. exd4 (16. Nxd4 Nc6 $18) 16... h5) 15. Qxb7 {[%emt 0:04:27]} Bc6 {[%emt 0:01:55]} 16. Qb3 {[%emt 0:04:27]} Qa5 {[%emt 0:02:40]} (16... O-O $142 17. Qc3 Qxc3 18. Bxc3 (18. Nxc3 a5 $18) 18... g6) 17. Bxg7 {[%emt 0:00:53]} Rg8 {[%emt 0:00:03]} 18. Bc3 {[%emt 0:00:43]} Qh5 {[%emt 0:00:25]} 19. Nd4 {[%emt 0:00:33]} Rxg3 {[%emt 0:05:44]} 20. hxg3 {[%emt 0:00:17]} (20. Kxg3 $2 {is a self mate.} Bh4+ 21. Kh3 Be1+ 22. Kg2 Qg4#) 20... Qxh1 {[%emt 0:01:11]} 21. Nxc6 {[%emt 0:00:23]} Qh2+ {[%emt 0:03:20]} 22. Bg2 {[%emt 0:00:07] [#] White threatens Qb7 and mate.} Bd6 {[%emt 0:00:51]} 23. Ne5 {[%emt 0:00:42]} Bxe5 {[%emt 0:07:46]} 24. Bxe5 {[%emt 0:00:07][%cal Oa1d1] White wants to mate with Rd1!} Nd7 {[%emt 0:00:05]} 25. Rh1 {[%emt 0:00:08]} Qxh1 {[%emt 0:00:12]} 26. Bxh1 {[%emt 0:00:01] White mates.} Nxe5 {[%emt 0:00:03]} 27. Qd5 {[%emt 0:00:01]} Rc8 {[%emt 0:01:40]} 28. Qxe5+ {[%emt 0:00:08]} Kd7 {[%emt 0:07:25] [#]} 29. c4 $1 {[%emt 0:00:09][%cal Bc2c4,Bc4c5][%mdl 32]} Rc6 {[%emt 0:03:08]} (29... Re8 30. Qf6) 30. f4 {[%emt 0:00:11]} Rd6 {[%emt 0:01:52]} 31. Bd5 {[%emt 0:00:10]} f6 {[%emt 0:04:41]} 32. Qf5+ {[%emt 0:00:03]} Kc7 {[%emt 0:03:16]} 33. c5 {[%emt 0:00:07]} Rd7 {[%emt 0:02:15]} 34. Qe6 {[%emt 0:00:08]} h5 {[%emt 0:01:24]} 35. b4 {[%emt 0:00:06][%cal Bb2b4,Bb4b5][%mdl 32]} f5 {[%emt 0:03:15]} 36. b5 {[%emt 0:00:04]} Rh7 {[%emt 0:04:46]} 37. Qd6+ {[%emt 0:00:10]} Kc8 {[%emt 0:01:59]} 38. Be6+ {[%emt 0:00:05]} Kb7 {[%emt 0:00:47]} 39. Qc6+ {[%emt 0:00:03]} Kb8 {[%emt 0:00:37]} 40. Qc8# {[%emt 0:00:03] Black did not feel at home in the position after the opening.   Weighted Error Value: White=0.28 (precise) /Black=0.93.  Mistake:       	---       	Black=4      OK:         	White=5     	Black=3      Best:        	White=1     	Black=1} 1-0